[Event "Early-Titled-Tuesday-Blitz-March-12-2024"]
[Site "Chess.com"]
[Date "2024.03.12"]
[Round "5"]
[White "KuzubovYuriy"]
[Black "Alexchess1984"]
[Result "1-0"]
[WhiteElo "2911"]
[BlackElo "2740"]
[TimeControl "180+1"]
[EndTime "8:55:03 PDT"]
[Termination "KuzubovYuriy won by resignation"]

1. d4 {[%clk 0:03:00.9]} 1... Nf6 {[%clk 0:02:59.4]} 2. Nf3 {[%clk 0:03:01.5]}
2... g6 {[%clk 0:02:59]} 3. Nbd2 {[%clk 0:03:01.1]} 3... d5 {[%clk 0:02:57.5]}
4. b4 {[%clk 0:03:00.8]} 4... Bg7 {[%clk 0:02:55.7]} 5. e3 {[%clk 0:03:00]} 5...
O-O {[%clk 0:02:55.4]} 6. c4 {[%clk 0:03:00.2]} 6... c6 {[%clk 0:02:52.9]} 7.
Bb2 {[%clk 0:03:00.1]} 7... Bg4 {[%clk 0:02:45.3]} 8. Be2 {[%clk 0:03:00.2]}
8... Nbd7 {[%clk 0:02:44]} 9. O-O {[%clk 0:03:00]} 9... e6 {[%clk 0:02:43.9]}
10. Rc1 {[%clk 0:02:55.8]} 10... Qe7 {[%clk 0:02:36.7]} 11. Qb3 {[%clk
0:02:48.4]} 11... Ne4 {[%clk 0:02:31]} 12. Bd3 {[%clk 0:02:39.4]} 12... Nxd2
{[%clk 0:02:16.8]} 13. Nxd2 {[%clk 0:02:40.3]} 13... dxc4 {[%clk 0:02:16.1]} 14.
Nxc4 {[%clk 0:02:27.5]} 14... e5 {[%clk 0:02:10.4]} 15. b5 {[%clk 0:02:13]}
15... exd4 {[%clk 0:02:06.7]} 16. exd4 {[%clk 0:02:11.3]} 16... Be6 {[%clk
0:01:37.7]} 17. bxc6 {[%clk 0:01:22.1]} 17... bxc6 {[%clk 0:01:38.6]} 18. Ba3
{[%clk 0:01:21.9]} 18... c5 {[%clk 0:01:38.7]} 19. dxc5 {[%clk 0:01:19.3]} 19...
Nxc5 {[%clk 0:01:14.1]} 20. Qb5 {[%clk 0:01:14.4]} 20... Qd7 {[%clk 0:01:02.2]}
21. Qxd7 {[%clk 0:01:13.7]} 21... Nxd7 {[%clk 0:01:00.6]} 22. Bxf8 {[%clk
0:01:13.3]} 22... Rxf8 {[%clk 0:01:01.1]} 23. Rfe1 {[%clk 0:01:06.1]} 23... Nc5
{[%clk 0:01:00.4]} 24. Bf1 {[%clk 0:01:05.6]} 24... Na4 {[%clk 0:00:57.8]} 25.
a3 {[%clk 0:00:45.6]} 25... h5 {[%clk 0:00:51.3]} 26. Ne5 {[%clk 0:00:42.9]}
26... Re8 {[%clk 0:00:39.1]} 27. Bc4 {[%clk 0:00:32.8]} 27... Bxc4 {[%clk
0:00:24]} 28. Nxc4 {[%clk 0:00:32.6]} 28... Rd8 {[%clk 0:00:22.5]} 29. Ne5
{[%clk 0:00:28.2]} 29... Rd2 {[%clk 0:00:15]} 30. Rc8+ {[%clk 0:00:27.3]} 30...
Kh7 {[%clk 0:00:14.4]} 31. Nxf7 {[%clk 0:00:27.3]} 31... Bd4 {[%clk 0:00:14.4]}
32. Ng5+ {[%clk 0:00:26.1]} 32... Kh6 {[%clk 0:00:12.4]} 33. Ne4 {[%clk
0:00:25.9]} 33... Ra2 {[%clk 0:00:07.4]} 34. Rc4 {[%clk 0:00:25.4]} 34... Bc3
{[%clk 0:00:04.6]} 35. Nxc3 {[%clk 0:00:25.1]} 1-0

[Event "Early-Titled-Tuesday-Blitz-March-12-2024"]
[Site "Chess.com"]
[Date "2024.03.12"]
[Round "5"]
[White "FaustinoOro"]
[Black "Defend1r"]
[Result "1-0"]
[WhiteElo "2909"]
[BlackElo "2736"]
[TimeControl "180+1"]
[EndTime "8:55:04 PDT"]
[Termination "FaustinoOro won by resignation"]

1. d4 {[%clk 0:03:00.9]} 1... Nf6 {[%clk 0:02:59.7]} 2. Nf3 {[%clk 0:02:59.8]}
2... e6 {[%clk 0:02:59.4]} 3. c4 {[%clk 0:02:59.4]} 3... d5 {[%clk 0:02:57.8]}
4. e3 {[%clk 0:02:58.1]} 4... Be7 {[%clk 0:02:56.7]} 5. Nc3 {[%clk 0:02:56]}
5... O-O {[%clk 0:02:56.2]} 6. Bd3 {[%clk 0:02:54.9]} 6... a6 {[%clk 0:02:52.2]}
7. cxd5 {[%clk 0:02:52.6]} 7... exd5 {[%clk 0:02:51.9]} 8. O-O {[%clk
0:02:52.8]} 8... Nbd7 {[%clk 0:02:46]} 9. b3 {[%clk 0:02:46]} 9... c6 {[%clk
0:02:41.9]} 10. Bb2 {[%clk 0:02:45.3]} 10... Bd6 {[%clk 0:02:40.7]} 11. h3
{[%clk 0:02:43.5]} 11... Qe7 {[%clk 0:02:30]} 12. Qc2 {[%clk 0:02:35.9]} 12...
g6 {[%clk 0:02:29.8]} 13. Rfe1 {[%clk 0:02:33]} 13... Re8 {[%clk 0:02:23.5]} 14.
e4 {[%clk 0:02:23.9]} 14... dxe4 {[%clk 0:02:23.4]} 15. Nxe4 {[%clk 0:02:24.8]}
15... Nxe4 {[%clk 0:02:17.5]} 16. Bxe4 {[%clk 0:02:02.5]} 16... Qf8 {[%clk
0:01:28.4]} 17. d5 {[%clk 0:01:49.3]} 17... Bb4 {[%clk 0:01:10]} 18. dxc6 {[%clk
0:01:27.6]} 18... Nc5 {[%clk 0:01:09.9]} 19. cxb7 {[%clk 0:01:17.6]} 19... Bxb7
{[%clk 0:00:52.6]} 20. Bxb7 {[%clk 0:01:15.7]} 20... Nxb7 {[%clk 0:00:51.8]} 21.
Re4 {[%clk 0:01:10.4]} 21... Rac8 {[%clk 0:00:40.9]} 22. Rc4 {[%clk 0:01:08.5]}
22... Nd6 {[%clk 0:00:39.6]} 23. Rc6 {[%clk 0:01:02.6]} 23... Rxc6 {[%clk
0:00:34.2]} 24. Qxc6 {[%clk 0:01:03.5]} 24... Rc8 {[%clk 0:00:34.5]} 25. Qxa6
{[%clk 0:00:59.7]} 25... Ne4 {[%clk 0:00:34]} 26. Qd3 {[%clk 0:00:54.9]} 26...
f5 {[%clk 0:00:26.1]} 27. Qd4 {[%clk 0:00:46.2]} 27... Bc3 {[%clk 0:00:16.4]}
28. Bxc3 {[%clk 0:00:41.7]} 28... Nxc3 {[%clk 0:00:16.3]} 29. Qd3 {[%clk
0:00:30.3]} 29... Qe7 {[%clk 0:00:14.8]} 30. Re1 {[%clk 0:00:28.9]} 30... Qc5
{[%clk 0:00:13.1]} 31. Re5 {[%clk 0:00:27.2]} 31... Qc7 {[%clk 0:00:12.6]} 32.
a4 {[%clk 0:00:23.1]} 32... Ne4 {[%clk 0:00:12.7]} 33. Qd5+ {[%clk 0:00:23.1]}
33... Kg7 {[%clk 0:00:12.6]} 34. Qd4 {[%clk 0:00:20.5]} 34... Qc1+ {[%clk
0:00:12.5]} 35. Kh2 {[%clk 0:00:20.2]} 35... Qf4+ {[%clk 0:00:12.8]} 36. g3
{[%clk 0:00:17.1]} 36... Qxf3 {[%clk 0:00:13.1]} 37. Rxf5+ {[%clk 0:00:17.6]}
1-0

[Event "Early-Titled-Tuesday-Blitz-March-12-2024"]
[Site "Chess.com"]
[Date "2024.03.12"]
[Round "5"]
[White "MaxLeto"]
[Black "rasmussvane"]
[Result "0-1"]
[WhiteElo "2498"]
[BlackElo "2963"]
[TimeControl "180+1"]
[EndTime "8:55:04 PDT"]
[Termination "rasmussvane won on time"]

1. g4 {[%clk 0:03:00.9]} 1... d5 {[%clk 0:02:54.4]} 2. Bg2 {[%clk 0:03:01.4]}
2... Bxg4 {[%clk 0:02:53.5]} 3. c4 {[%clk 0:03:01.2]} 3... c6 {[%clk 0:02:48.8]}
4. Qb3 {[%clk 0:03:00.8]} 4... Nf6 {[%clk 0:02:46.2]} 5. Qxb7 {[%clk 0:02:58.4]}
5... Nbd7 {[%clk 0:02:46.2]} 6. Nc3 {[%clk 0:02:50.9]} 6... e6 {[%clk
0:02:43.8]} 7. Qxc6 {[%clk 0:02:39]} 7... Rc8 {[%clk 0:02:43.1]} 8. Qa6 {[%clk
0:02:39.3]} 8... Rxc4 {[%clk 0:02:42.1]} 9. b3 {[%clk 0:02:39.8]} 9... Rc8
{[%clk 0:02:33.2]} 10. Ba3 {[%clk 0:02:37.6]} 10... Bc5 {[%clk 0:02:02.4]} 11.
Bxc5 {[%clk 0:01:18.7]} 11... Nxc5 {[%clk 0:02:01.9]} 12. Qxa7 {[%clk
0:01:18.1]} 12... O-O {[%clk 0:01:58.5]} 13. Nf3 {[%clk 0:01:18.3]} 13... d4
{[%clk 0:01:54.2]} 14. Na4 {[%clk 0:01:14.4]} 14... Nxa4 {[%clk 0:01:36]} 15.
Qxa4 {[%clk 0:01:15.3]} 15... d3 {[%clk 0:01:36.5]} 16. e3 {[%clk 0:00:59.4]}
16... Qd5 {[%clk 0:01:14.9]} 17. Qf4 {[%clk 0:00:35.3]} 17... e5 {[%clk
0:01:10.7]} 18. Qg3 {[%clk 0:00:29.5]} 18... e4 {[%clk 0:01:07.3]} 19. Nd4
{[%clk 0:00:12.3]} 19... Rc5 {[%clk 0:00:44.5]} 20. b4 {[%clk 0:00:08.2]} 20...
Rc4 {[%clk 0:00:38.9]} 21. b5 {[%clk 0:00:07.3]} 21... Be2 {[%clk 0:00:35.1]}
22. Bf1 {[%clk 0:00:03.2]} 22... Rxd4 {[%clk 0:00:33.9]} 23. exd4 {[%clk
0:00:03.1]} 23... Qxd4 {[%clk 0:00:34.4]} 24. Rc1 {[%clk 0:00:03.6]} 24... Qb2
{[%clk 0:00:32.7]} 25. Qc7 {[%clk 0:00:02.5]} 25... Nd5 {[%clk 0:00:29.4]} 26.
Bxe2 {[%clk 0:00:01.9]} 26... Nxc7 {[%clk 0:00:27.2]} 27. Rxc7 {[%clk
0:00:01.4]} 27... dxe2 {[%clk 0:00:27.5]} 28. Kxe2 {[%clk 0:00:01.9]} 28...
Qxb5+ {[%clk 0:00:26.9]} 29. Ke1 {[%clk 0:00:02.4]} 29... Qb1+ {[%clk
0:00:26.5]} 30. Ke2 {[%clk 0:00:02.5]} 30... Qxh1 {[%clk 0:00:27.4]} 31. Rc3
{[%clk 0:00:02.7]} 31... Rd8 {[%clk 0:00:26.2]} 32. a4 {[%clk 0:00:03.6]} 32...
Qa1 {[%clk 0:00:24.4]} 33. a5 {[%clk 0:00:03.2]} 33... Qa2 {[%clk 0:00:24.2]}
0-1

[Event "Early-Titled-Tuesday-Blitz-March-12-2024"]
[Site "Chess.com"]
[Date "2024.03.12"]
[Round "5"]
[White "AlessiaSanteramo"]
[Black "GilbertoHernandezAmura"]
[Result "0-1"]
[WhiteElo "2251"]
[BlackElo "2461"]
[TimeControl "180+1"]
[EndTime "8:55:04 PDT"]
[Termination "GilbertoHernandezAmura won by resignation"]

1. e4 {[%clk 0:02:33.9]} 1... Nf6 {[%clk 0:02:55]} 2. e5 {[%clk 0:02:33.5]} 2...
Nd5 {[%clk 0:02:27.8]} 3. c4 {[%clk 0:02:32.9]} 3... Nb6 {[%clk 0:02:27.8]} 4.
d4 {[%clk 0:02:32.1]} 4... d6 {[%clk 0:02:27.7]} 5. exd6 {[%clk 0:02:33]} 5...
cxd6 {[%clk 0:02:23.8]} 6. Nc3 {[%clk 0:02:16.8]} 6... g6 {[%clk 0:02:23.2]} 7.
Be3 {[%clk 0:02:17.7]} 7... Bg7 {[%clk 0:02:23.4]} 8. Rc1 {[%clk 0:02:18.6]}
8... Nc6 {[%clk 0:02:20.1]} 9. b3 {[%clk 0:02:19.5]} 9... O-O {[%clk 0:02:17.7]}
10. d5 {[%clk 0:02:09.5]} 10... Ne5 {[%clk 0:02:15.6]} 11. Be2 {[%clk
0:02:00.4]} 11... e6 {[%clk 0:02:03.6]} 12. f4 {[%clk 0:01:51.5]} 12... Ned7
{[%clk 0:01:58.4]} 13. dxe6 {[%clk 0:01:49]} 13... fxe6 {[%clk 0:01:54.4]} 14.
Qxd6 {[%clk 0:01:48.3]} 14... e5 {[%clk 0:01:36.6]} 15. Nf3 {[%clk 0:01:33.3]}
15... exf4 {[%clk 0:00:51.2]} 16. Bxf4 {[%clk 0:01:32]} 16... Re8 {[%clk
0:00:51.9]} 17. c5 {[%clk 0:01:23.3]} 17... Bf8 {[%clk 0:00:35.9]} 18. Qd3
{[%clk 0:00:47.9]} 18... Nxc5 {[%clk 0:00:33.1]} 19. Qxd8 {[%clk 0:00:44.2]}
19... Rxd8 {[%clk 0:00:34]} 20. Nb5 {[%clk 0:00:41.2]} 20... Bf5 {[%clk
0:00:23.9]} 21. O-O {[%clk 0:00:28.2]} 21... Bd3 {[%clk 0:00:22.3]} 22. Bxd3
{[%clk 0:00:26]} 22... Nxd3 {[%clk 0:00:22.6]} 23. Rc7 {[%clk 0:00:16.5]} 23...
Nxf4 {[%clk 0:00:19]} 24. Ng5 {[%clk 0:00:16.8]} 24... Nbd5 {[%clk 0:00:17.5]}
25. Rxb7 {[%clk 0:00:14.7]} 25... Bc5+ {[%clk 0:00:17.4]} 26. Kh1 {[%clk
0:00:15.2]} 26... h6 {[%clk 0:00:17.6]} 27. Ne4 {[%clk 0:00:14.3]} 27... Bb6
{[%clk 0:00:15.8]} 28. g3 {[%clk 0:00:14.3]} 28... Ne3 {[%clk 0:00:14.1]} 29.
Rxf4 {[%clk 0:00:13.9]} 29... Rd1+ {[%clk 0:00:13.9]} 0-1

[Event "Early-Titled-Tuesday-Blitz-March-12-2024"]
[Site "Chess.com"]
[Date "2024.03.12"]
[Round "5"]
[White "LogoCzar"]
[Black "Ural_bogatyr"]
[Result "1-0"]
[WhiteElo "2404"]
[BlackElo "2609"]
[TimeControl "180+1"]
[EndTime "8:55:11 PDT"]
[Termination "LogoCzar won by resignation"]

1. Nc3 {[%clk 0:03:00.9]} 1... Nf6 {[%clk 0:02:54.7]} 2. g3 {[%clk 0:03:00.2]}
2... d5 {[%clk 0:02:52.4]} 3. Bg2 {[%clk 0:02:59.7]} 3... e5 {[%clk 0:02:30.3]}
4. d3 {[%clk 0:02:59.3]} 4... h6 {[%clk 0:02:25.8]} 5. f4 {[%clk 0:02:58.5]}
5... Nc6 {[%clk 0:02:22.8]} 6. e4 {[%clk 0:02:49.7]} 6... Bg4 {[%clk 0:02:19]}
7. Nf3 {[%clk 0:02:46.5]} 7... dxe4 {[%clk 0:02:18.8]} 8. Nxe4 {[%clk
0:02:36.6]} 8... Nxe4 {[%clk 0:02:16.3]} 9. dxe4 {[%clk 0:02:37.5]} 9... Qxd1+
{[%clk 0:02:15.4]} 10. Kxd1 {[%clk 0:02:37.8]} 10... O-O-O+ {[%clk 0:02:15]} 11.
Bd2 {[%clk 0:02:34.8]} 11... Nd4 {[%clk 0:02:02.9]} 12. Rf1 {[%clk 0:02:33.8]}
12... exf4 {[%clk 0:01:52.1]} 13. gxf4 {[%clk 0:02:33]} 13... Bc5 {[%clk
0:01:37.6]} 14. c3 {[%clk 0:02:32.3]} 14... Nxf3 {[%clk 0:01:36.5]} 15. Bxf3
{[%clk 0:02:33.2]} 15... Bh3 {[%clk 0:01:30.7]} 16. Re1 {[%clk 0:02:31.8]} 16...
Bf2 {[%clk 0:01:29.8]} 17. Re2 {[%clk 0:02:32]} 17... Bc5 {[%clk 0:01:24.8]} 18.
Kc2 {[%clk 0:02:32]} 18... Rhe8 {[%clk 0:01:22.1]} 19. e5 {[%clk 0:02:27.2]}
19... c6 {[%clk 0:01:11.6]} 20. Be3 {[%clk 0:02:24.1]} 20... Bf5+ {[%clk
0:01:10.4]} 21. Kb3 {[%clk 0:02:22.2]} 21... Rd3 {[%clk 0:00:47.2]} 22. Bxc5
{[%clk 0:02:18.6]} 22... Rxf3 {[%clk 0:00:46.6]} 23. Bxa7 {[%clk 0:02:17.3]}
23... Rxf4 {[%clk 0:00:46.5]} 24. Bd4 {[%clk 0:02:12.7]} 24... Kc7 {[%clk
0:00:43.6]} 25. a4 {[%clk 0:02:12.3]} 25... Be4 {[%clk 0:00:34.2]} 26. a5 {[%clk
0:02:11.7]} 26... f6 {[%clk 0:00:31]} 27. exf6 {[%clk 0:02:08.1]} 27... Bd5+
{[%clk 0:00:30.9]} 28. c4 {[%clk 0:02:05.6]} 28... Rxe2 {[%clk 0:00:27.8]} 29.
Bb6+ {[%clk 0:02:05.5]} 29... Kd6 {[%clk 0:00:26]} 30. cxd5 {[%clk 0:02:03.8]}
30... Rf3+ {[%clk 0:00:20.5]} 31. Ka4 {[%clk 0:02:01.3]} 31... gxf6 {[%clk
0:00:21.4]} 32. dxc6 {[%clk 0:02:00]} 32... Kxc6 {[%clk 0:00:19.5]} 33. Rc1+
{[%clk 0:01:59.6]} 33... Kd6 {[%clk 0:00:19.3]} 34. Rc7 {[%clk 0:01:56.5]} 34...
Rxb2 {[%clk 0:00:18]} 35. Rxb7 {[%clk 0:01:55]} 35... Ke6 {[%clk 0:00:18.5]} 36.
a6 {[%clk 0:01:50.4]} 36... Rf1 {[%clk 0:00:18.5]} 37. Ka3 {[%clk 0:01:47.8]}
37... Rb5 {[%clk 0:00:18.9]} 38. Ka2 {[%clk 0:01:45.4]} 38... Rf4 {[%clk
0:00:18.6]} 39. Ka3 {[%clk 0:01:41.8]} 39... Rf1 {[%clk 0:00:14.5]} 40. Ka2
{[%clk 0:01:41.6]} 40... Rf4 {[%clk 0:00:05.4]} 41. Ka3 {[%clk 0:01:41.3]} 41...
Rb1 {[%clk 0:00:06.1]} 42. Ka2 {[%clk 0:01:29.7]} 42... Rff1 {[%clk 0:00:06.1]}
43. a7 {[%clk 0:01:27.7]} 43... Ra1+ {[%clk 0:00:06.1]} 44. Kb3 {[%clk 0:01:28]}
44... Rfb1+ {[%clk 0:00:07]} 45. Kc2 {[%clk 0:01:28.2]} 45... Kf5 {[%clk
0:00:06.2]} 46. a8=Q {[%clk 0:01:24.8]} 46... Rc1+ {[%clk 0:00:06.1]} 47. Kd2
{[%clk 0:01:24.8]} 47... Rd1+ {[%clk 0:00:06.3]} 48. Ke2 {[%clk 0:01:25.2]}
48... Re1+ {[%clk 0:00:05.4]} 49. Kf2 {[%clk 0:01:25.5]} 49... Rxa8 {[%clk
0:00:03.3]} 50. Kxe1 {[%clk 0:01:25]} 50... Ra2 {[%clk 0:00:03.8]} 51. Bc7
{[%clk 0:01:22.8]} 51... Kg4 {[%clk 0:00:03.6]} 52. Rb6 {[%clk 0:01:22.5]} 52...
f5 {[%clk 0:00:02.7]} 53. Rxh6 {[%clk 0:01:22.1]} 53... Kf3 {[%clk 0:00:02.8]}
54. Rh4 {[%clk 0:01:21.1]} 54... Ra1+ {[%clk 0:00:02.2]} 55. Kd2 {[%clk
0:01:20.7]} 55... Ra7 {[%clk 0:00:02.1]} 56. Bg3 {[%clk 0:01:19.2]} 56... Kg2
{[%clk 0:00:02.2]} 57. Rf4 {[%clk 0:01:19]} 57... Ra5 {[%clk 0:00:02]} 58. Ke3
{[%clk 0:01:19]} 58... Ra3+ {[%clk 0:00:02.2]} 59. Kd4 {[%clk 0:01:19]} 59...
Rf3 {[%clk 0:00:02.3]} 60. Rxf3 {[%clk 0:01:17.8]} 60... Kxf3 {[%clk 0:00:03.2]}
61. Ke5 {[%clk 0:01:17.9]} 1-0

[Event "Early-Titled-Tuesday-Blitz-March-12-2024"]
[Site "Chess.com"]
[Date "2024.03.12"]
[Round "5"]
[White "Viktor_Poddubnyi"]
[Black "Sadykov_Ramil"]
[Result "0-1"]
[WhiteElo "2265"]
[BlackElo "2598"]
[TimeControl "180+1"]
[EndTime "8:55:16 PDT"]
[Termination "Sadykov_Ramil won on time"]

1. e4 {[%clk 0:03:00.9]} 1... c5 {[%clk 0:01:59.4]} 2. Nf3 {[%clk 0:03:00.1]}
2... e6 {[%clk 0:01:54.5]} 3. g3 {[%clk 0:02:59]} 3... Nc6 {[%clk 0:01:51.8]} 4.
Bg2 {[%clk 0:02:58.4]} 4... Nf6 {[%clk 0:01:50.9]} 5. e5 {[%clk 0:02:58.5]} 5...
Ng4 {[%clk 0:01:49.7]} 6. b4 {[%clk 0:02:58.8]} 6... Ngxe5 {[%clk 0:01:42]} 7.
Nxe5 {[%clk 0:02:52.3]} 7... Nxe5 {[%clk 0:01:42.9]} 8. bxc5 {[%clk 0:02:52.3]}
8... Nc6 {[%clk 0:01:36.8]} 9. d4 {[%clk 0:02:44.7]} 9... b6 {[%clk 0:01:32]}
10. d5 {[%clk 0:02:17.7]} 10... exd5 {[%clk 0:01:26.1]} 11. cxb6 {[%clk
0:02:11.2]} 11... Ba6 {[%clk 0:01:13.2]} 12. Bxd5 {[%clk 0:01:41.2]} 12... Qxb6
{[%clk 0:01:00.2]} 13. c4 {[%clk 0:01:32.1]} 13... Bb4+ {[%clk 0:00:50.1]} 14.
Kf1 {[%clk 0:01:21.7]} 14... O-O {[%clk 0:00:46.9]} 15. Kg2 {[%clk 0:01:11.3]}
15... Rac8 {[%clk 0:00:39.7]} 16. Nd2 {[%clk 0:00:57.4]} 16... Ne7 {[%clk
0:00:31.3]} 17. Bf3 {[%clk 0:00:53.7]} 17... Rfd8 {[%clk 0:00:20.1]} 18. Rb1
{[%clk 0:00:45.5]} 18... Qc5 {[%clk 0:00:16.9]} 19. Qa4 {[%clk 0:00:38.2]} 19...
Bxd2 {[%clk 0:00:15]} 20. Bxd2 {[%clk 0:00:38.6]} 20... Bxc4 {[%clk 0:00:14.7]}
21. Bb4 {[%clk 0:00:23]} 21... Qg5 {[%clk 0:00:13.1]} 22. h4 {[%clk 0:00:13.8]}
22... Qf6 {[%clk 0:00:11.7]} 23. Qxa7 {[%clk 0:00:13]} 23... Bd5 {[%clk
0:00:10]} 24. Bxd5 {[%clk 0:00:09.8]} 24... Nxd5 {[%clk 0:00:10.9]} 25. Bd2
{[%clk 0:00:09.1]} 25... Rc2 {[%clk 0:00:10.2]} 26. Rbd1 {[%clk 0:00:07.3]}
26... h6 {[%clk 0:00:08.6]} 27. Be3 {[%clk 0:00:06.6]} 27... Qc6 {[%clk
0:00:04.8]} 28. Qd4 {[%clk 0:00:05.1]} 28... Nxe3+ {[%clk 0:00:03.6]} 0-1

[Event "Early-Titled-Tuesday-Blitz-March-12-2024"]
[Site "Chess.com"]
[Date "2024.03.12"]
[Round "5"]
[White "matagordo"]
[Black "SharapovEvgeny"]
[Result "0-1"]
[WhiteElo "2254"]
[BlackElo "2528"]
[TimeControl "180+1"]
[EndTime "8:55:16 PDT"]
[Termination "SharapovEvgeny won by resignation"]

1. d4 {[%clk 0:02:56.4]} 1... Nf6 {[%clk 0:02:59.6]} 2. Bf4 {[%clk 0:02:53.6]}
2... d5 {[%clk 0:02:58.3]} 3. e3 {[%clk 0:02:53.6]} 3... c6 {[%clk 0:02:58.4]}
4. Nf3 {[%clk 0:02:50.8]} 4... Bg4 {[%clk 0:02:57.8]} 5. c4 {[%clk 0:02:51.4]}
5... e6 {[%clk 0:02:57.5]} 6. Qb3 {[%clk 0:02:51.5]} 6... Qc8 {[%clk 0:02:53.7]}
7. Nc3 {[%clk 0:02:50.2]} 7... Bxf3 {[%clk 0:02:49.3]} 8. gxf3 {[%clk 0:02:50]}
8... Nh5 {[%clk 0:02:47.9]} 9. Bxb8 {[%clk 0:02:30.3]} 9... Qxb8 {[%clk
0:02:46.9]} 10. cxd5 {[%clk 0:02:29.4]} 10... exd5 {[%clk 0:02:46.6]} 11. Nxd5
{[%clk 0:02:19.1]} 11... cxd5 {[%clk 0:02:45.4]} 12. Bb5+ {[%clk 0:02:19.4]}
12... Ke7 {[%clk 0:02:42.1]} 13. Qxd5 {[%clk 0:02:19.4]} 13... Nf6 {[%clk
0:02:33]} 14. Qc5+ {[%clk 0:02:05.6]} 14... Kd8 {[%clk 0:02:30.2]} 15. Qg5
{[%clk 0:02:03.6]} 15... Bb4+ {[%clk 0:02:26.5]} 16. Ke2 {[%clk 0:02:02]} 16...
Ke7 {[%clk 0:02:13]} 17. Rac1 {[%clk 0:01:42.5]} 17... Bd6 {[%clk 0:02:04.3]}
18. e4 {[%clk 0:01:10.4]} 18... h6 {[%clk 0:01:55.2]} 19. Qg2 {[%clk 0:00:53.1]}
19... Bf4 {[%clk 0:01:48.1]} 20. e5 {[%clk 0:00:43.7]} 20... Bxc1 {[%clk
0:01:35.9]} 21. exf6+ {[%clk 0:00:43.6]} 21... Kxf6 {[%clk 0:01:36]} 22. Rxc1
{[%clk 0:00:42.5]} 22... Qf4 {[%clk 0:01:33]} 23. Rd1 {[%clk 0:00:32.3]} 23...
a6 {[%clk 0:01:28.6]} 24. Bd3 {[%clk 0:00:26.2]} 24... Rhe8+ {[%clk 0:01:27.3]}
25. Kf1 {[%clk 0:00:26]} 25... Rad8 {[%clk 0:01:20.2]} 26. Be4 {[%clk
0:00:24.8]} 26... g5 {[%clk 0:01:18]} 27. Qg3 {[%clk 0:00:15.7]} 27... Qxg3
{[%clk 0:01:16]} 28. fxg3 {[%clk 0:00:11.5]} 28... b6 {[%clk 0:01:16.2]} 29. Rc1
{[%clk 0:00:10.4]} 29... Rc8 {[%clk 0:01:16]} 30. Rd1 {[%clk 0:00:10.8]} 30...
Red8 {[%clk 0:01:15]} 31. d5 {[%clk 0:00:10.9]} 31... Ke5 {[%clk 0:01:12.8]} 32.
g4 {[%clk 0:00:09.8]} 32... Kd6 {[%clk 0:01:12.1]} 33. Kg2 {[%clk 0:00:09.8]}
33... Rc4 {[%clk 0:01:09.8]} 34. Rd3 {[%clk 0:00:09.6]} 34... Rc2+ {[%clk
0:01:08.3]} 35. Kg3 {[%clk 0:00:09.2]} 35... Rxb2 {[%clk 0:01:08.3]} 36. Ra3
{[%clk 0:00:07.8]} 36... a5 {[%clk 0:01:08.4]} 37. h4 {[%clk 0:00:07.2]} 37...
Rc8 {[%clk 0:01:04.8]} 38. hxg5 {[%clk 0:00:06.3]} 38... hxg5 {[%clk 0:01:04.8]}
39. Re3 {[%clk 0:00:06.6]} 39... Rc1 {[%clk 0:01:00.1]} 40. f4 {[%clk
0:00:02.6]} 40... Rg1+ {[%clk 0:00:56.9]} 41. Kh3 {[%clk 0:00:02.3]} 41... gxf4
{[%clk 0:00:56.7]} 42. Rf3 {[%clk 0:00:02.3]} 42... Rg3+ {[%clk 0:00:56.6]} 43.
Rxg3 {[%clk 0:00:01.9]} 43... fxg3 {[%clk 0:00:57]} 44. Kxg3 {[%clk 0:00:02]}
44... Rxa2 {[%clk 0:00:57.2]} 45. Kf4 {[%clk 0:00:02.9]} 45... Ra4 {[%clk
0:00:57.1]} 46. Kf5 {[%clk 0:00:03.8]} 46... Rxe4 {[%clk 0:00:57.3]} 47. Kxe4
{[%clk 0:00:04.7]} 47... a4 {[%clk 0:00:57.9]} 48. Kf5 {[%clk 0:00:05.4]} 48...
a3 {[%clk 0:00:58.4]} 49. Kf6 {[%clk 0:00:06.2]} 49... a2 {[%clk 0:00:59]} 50.
Kxf7 {[%clk 0:00:07.1]} 50... a1=Q {[%clk 0:00:59.5]} 51. g5 {[%clk 0:00:08]}
51... Qf1+ {[%clk 0:00:58.7]} 52. Kg8 {[%clk 0:00:05.5]} 52... Qf5 {[%clk
0:00:57.2]} 53. g6 {[%clk 0:00:06.4]} 53... Qxg6+ {[%clk 0:00:57.1]} 0-1

[Event "Early-Titled-Tuesday-Blitz-March-12-2024"]
[Site "Chess.com"]
[Date "2024.03.12"]
[Round "5"]
[White "ChessSwole"]
[Black "LiamPutnam2008"]
[Result "0-1"]
[WhiteElo "2725"]
[BlackElo "2900"]
[TimeControl "180+1"]
[EndTime "8:55:20 PDT"]
[Termination "LiamPutnam2008 won by resignation"]

1. Nf3 {[%clk 0:03:00.9]} 1... a6 {[%clk 0:02:51.5]} 2. a3 {[%clk 0:02:59.2]}
2... g6 {[%clk 0:02:49.7]} 3. g3 {[%clk 0:02:57]} 3... Bg7 {[%clk 0:02:49.8]} 4.
Bg2 {[%clk 0:02:57.4]} 4... Nf6 {[%clk 0:02:47.2]} 5. O-O {[%clk 0:02:56.6]}
5... O-O {[%clk 0:02:47.5]} 6. c4 {[%clk 0:02:56.4]} 6... d5 {[%clk 0:02:44.7]}
7. cxd5 {[%clk 0:02:55.7]} 7... Nxd5 {[%clk 0:02:45.6]} 8. e4 {[%clk 0:02:46.3]}
8... Nb6 {[%clk 0:02:37.8]} 9. d4 {[%clk 0:02:45.8]} 9... Bg4 {[%clk 0:02:37.4]}
10. Be3 {[%clk 0:02:45.9]} 10... Nc6 {[%clk 0:02:34.5]} 11. d5 {[%clk
0:02:39.5]} 11... Na5 {[%clk 0:02:23.3]} 12. Nbd2 {[%clk 0:02:35.1]} 12... Nbc4
{[%clk 0:02:06.7]} 13. Nxc4 {[%clk 0:02:33.9]} 13... Nxc4 {[%clk 0:02:07.6]} 14.
Bd4 {[%clk 0:02:33.1]} 14... Nxb2 {[%clk 0:02:06.8]} 15. Qb3 {[%clk 0:02:23.5]}
15... Bxf3 {[%clk 0:01:42.9]} 16. Bxg7 {[%clk 0:02:22.5]} 16... Bxg2 {[%clk
0:01:43.6]} 17. Bxb2 {[%clk 0:02:08.5]} 17... Bxf1 {[%clk 0:01:37.6]} 18. Qc3
{[%clk 0:02:07.1]} 18... f6 {[%clk 0:01:36.1]} 19. Rxf1 {[%clk 0:02:05.8]} 19...
Rc8 {[%clk 0:01:25.9]} 20. Qb3 {[%clk 0:01:57.2]} 20... b5 {[%clk 0:01:23.3]}
21. Rc1 {[%clk 0:01:55.5]} 21... c5 {[%clk 0:01:18.4]} 22. dxc6+ {[%clk
0:01:53.8]} 22... Kg7 {[%clk 0:01:19]} 23. e5 {[%clk 0:01:50.9]} 23... Qd2
{[%clk 0:01:02.5]} 24. Rd1 {[%clk 0:01:42.5]} 24... Qe2 {[%clk 0:00:59.2]} 25.
exf6+ {[%clk 0:01:40.4]} 25... exf6 {[%clk 0:01:00.1]} 26. Rd7+ {[%clk
0:01:40.5]} 26... Kh6 {[%clk 0:00:59.9]} 27. Bc1+ {[%clk 0:01:33.9]} 27... g5
{[%clk 0:00:56.1]} 28. Qc3 {[%clk 0:01:24]} 28... Rce8 {[%clk 0:00:46.8]} 29.
Be3 {[%clk 0:01:21.2]} 29... Qc4 {[%clk 0:00:37.5]} 30. Qd2 {[%clk 0:01:12.1]}
30... Qxc6 {[%clk 0:00:30.7]} 31. Bxg5+ {[%clk 0:01:11.9]} 31... Kg6 {[%clk
0:00:25.4]} 32. Be3 {[%clk 0:01:03.8]} 32... Qe4 {[%clk 0:00:17.9]} 33. h4
{[%clk 0:00:53.5]} 33... h5 {[%clk 0:00:17.3]} 34. Qd6 {[%clk 0:00:43.1]} 34...
Qe6 {[%clk 0:00:14.3]} 35. Qd3+ {[%clk 0:00:35.7]} 35... Qe4 {[%clk 0:00:12.9]}
36. Qd6 {[%clk 0:00:28.5]} 36... Rf7 {[%clk 0:00:13.1]} 37. Rxf7 {[%clk
0:00:20.6]} 37... Kxf7 {[%clk 0:00:14]} 38. Qxa6 {[%clk 0:00:21]} 38... Rd8
{[%clk 0:00:14.3]} 39. Qa7+ {[%clk 0:00:10.4]} 39... Kg6 {[%clk 0:00:13.5]} 40.
Kf1 {[%clk 0:00:07.2]} 40... Qh1+ {[%clk 0:00:12]} 0-1